bitfinex/quotes_ETHUSD_20250725
["timestamp","ask_amount","ask_price","bid_price","bid_amount"]
[1753483983843,0.2502039,3721.2,3721.1,0.4459]
[1753483984175,0.7166039,3721.2,3721.1,0.4459]
[1753483984775,0.25173948,3721.2,3721.1,3.13327738]
[1753483985277,0.25173948,3721.2,3721.1,0.4459]
[1753483985477,0.71813948,3721.2,3721.1,0.4459]
[1753483986047,0.71813948,3721.2,3721.1,3.13327738]
[1753483986243,0.71813948,3721.2,3721.1,0.4459]
[1753483986244,0.25173948,3721.2,3721.1,0.4459]
[1753483986780,0.25173948,3721.2,3721.1,3.13327738]
[1753483987672,0.25173948,3721.2,3721.1,3.61337738]
[1753483988249,0.25173948,3721.4,3721.3,2.68723295]
[1753483988651,0.25173948,3721.4,3721.3,3.61323295]
[1753483989064,0.1344,3721.5,3721.3,3.61323295]
[1753483989275,0.6008,3721.5,3721.4,0.4459]
[1753483991088,0.6008,3721.5,3721.2,2.68728462]
[1753483991284,0.1344,3721.5,3721.2,2.68728462]
[1753483991449,0.4664,3721.4,3721.2,3.13318462]
[1753483991783,0.4664,3721.4,3721.2,2.68728462]
[1753483991988,0.4664,3721.4,3721.3,0.4459]
[1753483992485,0.4664,3721.4,3721.3,3.13313295]
[1753483992784,0.1344,3721.5,3721.3,0.4459]
[1753483992993,0.1344,3721.5,3721.3,2.6872264]
[1753483993288,0.1344,3721.5,3721.4,3.13306074]
[1753483994044,2.467,3721.5,3721.4,3.61316074]
[1753483994261,2.6014,3721.6,3721.5,2.68708853]
[1753483994458,2.6014,3721.6,3721.5,3.13298853]
[1753483994653,2.6014,3721.6,3721.5,3.61308853]
[1753483995383,2.467,3721.6,3721.5,3.61308853]
[1753483995992,2.467,3721.6,3721.5,0.926]
[1753483996289,2.467,3721.6,3721.5,0.4459]
[1753483996988,2.467,3721.6,3721.5,3.13298853]
[1753483997186,2.467,3721.6,3721.5,3.61308853]
[1753483998192,2.467,3721.6,3721.5,0.926]
[1753483998398,2.467,3721.6,3721.5,0.4459]
[1753483999196,2.467,3721.6,3721.5,3.13298853]
[1753483999577,2.467,3721.6,3721.5,0.4459]
[1753484002305,2.467,3721.6,3721.5,3.13298853]
[1753484003408,2.467,3721.6,3721.5,0.4459]
[1753484003591,3.26834,3721.6,3721.5,0.4459]
[1753484004907,3.26834,3721.6,3721.5,3.13298853]
[1753484005404,2.77634,3721.6,3721.5,3.13298853]
[1753484007221,2.77634,3721.6,3721.5,0.4459]
[1753484008600,3.26834,3721.6,3721.5,0.4459]
[1753484008919,3.26834,3721.6,3721.5,3.13298853]
[1753484009628,0.1344,3721.7,3721.5,2.68708853]
[1753484009785,0.1344,3722.5,3721.6,3.62856853]
[1753484010127,0.1344,3722.5,3722.3,2.68650405]
[1753484010628,0.6264,3722.5,3722.4,0.4398]
[1753484010784,0.76823,3722.5,3722.4,0.4398]
[1753484012721,0.1344,3722.5,3722.4,3.12623885]
[1753484012925,3.708,3723.0,3722.4,0.9147]
[1753484013220,0.1344,3722.7,3722.4,0.4398]
[1753484013424,0.492,3722.6,3722.5,0.4398]
[1753484014090,0.1344,3722.7,3722.5,0.4398]
[1753484014291,0.1344,3722.7,3722.6,0.4398]
[1753484014929,0.1344,3722.7,3722.6,3.12609452]
[1753484015424,0.1344,3722.7,3722.6,0.4398]
[1753484017128,0.1344,3722.7,3722.6,3.12609452]
[1753484017341,2.958,3723.0,3722.7,2.68622071]
[1753484017627,2.465,3723.1,3722.8,2.68612178]
[1753484017824,2.465,3723.1,3722.8,3.16102178]
[1753484018025,2.957,3723.1,3722.9,3.12586571]
[1753484018211,2.957,3723.1,3722.9,2.68606571]
[1753484018415,2.957,3723.1,3723.0,0.4398]
[1753484021622,2.465,3723.1,3723.0,0.4398]
[1753484022433,2.68557496,3723.6,3723.0,0.4398]
[1753484022434,2.465,3723.6,3723.3,2.68578858]
[1753484022590,0.1344,3723.5,3723.4,0.4398]
[1753484022928,0.6264,3723.5,3723.1,3.12570824]
[1753484023237,0.6264,3723.5,3722.9,3.29537179]
[1753484023238,0.492,3723.4,3723.2,3.12566046]
[1753484023438,0.492,3723.4,3723.0,0.4749]
[1753484023439,0.492,3723.4,3723.3,0.4398]
[1753484028145,0.1344,3723.5,3723.3,0.4398]
[1753484028366,0.6264,3723.5,3723.3,0.4398]
[1753484028664,0.492,3723.4,3723.3,0.4398]
[1753484028828,0.1344,3723.5,3723.2,2.68585187]
[1753484029024,0.492,3723.4,3723.2,0.4398]
[1753484029230,0.492,3723.4,3723.3,0.4398]
[1753484033769,0.1344,3723.5,3723.3,0.4398]
[1753484033936,0.6316,3723.5,3723.4,0.4569]
[1753484035273,0.6316,3723.5,3723.1,2.68587291]
[1753484035431,0.4972,3723.4,3723.2,0.4569]
[1753484036055,0.4972,3723.4,3723.3,0.4569]
[1753484040399,1.9070588,3723.4,3722.9,0.1344]
[1753484040691,1.9070588,3723.4,3722.5,4.9701]
[1753484040692,0.1344,3723.2,3722.7,2.82061548]
[1753484040861,2.5984,3723.2,3722.7,2.82061548]
[1753484041065,0.4972,3723.1,3722.8,0.4569]
[1753484043297,0.8308,3724.1,3723.1,3.0]
[1753484043500,0.8308,3724.9,3724.0,0.765]
[1753484043700,1.328,3725.1,3724.6,2.68483978]
[1753484043899,2.463,3725.0,3724.7,3.63007746]
[1753484044101,0.8308,3726.0,3724.9,0.765]
[1753484044305,0.4972,3725.9,3724.9,0.765]
[1753484044505,0.4972,3725.9,3725.0,1.3218]
[1753484044817,0.4972,3725.9,3725.1,0.9453]
[1753484045099,3.2988,3726.0,3725.5,2.68417356]
[1753484045400,3.2988,3726.0,3725.6,0.4569]
[1753484045401,0.4972,3725.9,3725.6,0.4569]
[1753484046599,0.4972,3725.9,3725.3,0.9453]
[1753484046600,2.6840109,3725.8,3725.3,0.9453]
[1753484046795,0.4972,3725.7,3725.3,0.4884]
[1753484046999,0.4972,3725.7,3725.4,0.4569]
[1753484047203,0.4972,3725.7,3725.5,0.4569]
[1753484047704,3.18125948,3725.7,3725.5,0.4569]
[1753484048067,2.68413141,3725.6,3725.5,0.4569]
[1753484048308,0.4972,3725.7,3725.0,0.3765]
[1753484048309,3.2988,3726.0,3725.0,0.3765]
[1753484048481,3.18135084,3725.6,3725.1,0.4569]
[1753484048687,2.68415084,3725.6,3724.9,1.2534]
[1753484048899,0.4972,3725.5,3725.2,0.4569]
[1753484049083,0.4972,3725.4,3724.8,2.68469458]
[1753484049303,0.4972,3725.4,3724.7,0.4569]
[1753484049489,0.4972,3725.4,3724.7,0.87422]
[1753484049686,2.68439965,3725.3,3724.7,0.87422]
[1753484049899,3.18164686,3725.2,3724.7,0.4569]
[1753484050408,3.18170822,3725.1,3724.7,0.4569]
[1753484050812,0.4972,3725.0,3724.7,0.4569]
[1753484051014,0.4972,3724.9,3724.7,0.4569]
[1753484056024,0.4972,3724.9,3724.8,0.4569]
[1753484056427,0.1344,3725.1,3724.8,0.4569]
[1753484056723,0.4972,3725.0,3724.8,0.4569]
[1753484059232,0.4972,3725.0,3724.6,3.30764821]
[1753484059433,0.4972,3725.0,3724.9,0.4569]
[1753484059797,0.1344,3725.1,3724.9,0.4569]
[1753484059998,0.1344,3725.1,3724.6,3.7184678]
[1753484060199,0.1344,3725.1,3725.0,0.4308]
[1753484060435,0.6121,3725.1,3725.0,0.4308]
[1753484069839,3.0751,3725.1,3725.0,0.4308]
[1753484073304,0.6121,3725.1,3725.0,0.4308]
[1753484073657,2.5964,3725.1,3725.0,0.4308]
[1753484074310,2.5964,3725.1,3725.0,0.8998]
[1753484074512,2.462,3725.2,3725.0,0.8998]
[1753484074735,2.462,3725.2,3725.1,0.8998]
[1753484074933,2.462,3725.2,3725.0,2.68455327]
[1753484075138,2.462,3725.2,3725.1,0.8998]
[1753484078124,0.4777,3725.7,3725.2,2.68439739]
[1753484078470,0.1344,3725.4,3725.3,0.8998]
[1753484079069,0.1344,3725.4,3725.3,0.4308]
[1753484082153,0.1344,3725.4,3725.3,0.8998]
[1753484082953,0.1344,3725.4,3725.3,0.4308]
[1753484084598,0.1344,3725.4,3725.3,3.11514756]
[1753484085659,0.1344,3725.4,3725.3,3.58414756]
[1753484086857,0.1344,3725.4,3725.3,0.8998]
[1753484087158,0.1344,3725.4,3725.3,3.58414756]
[1753484087459,0.1344,3725.4,3725.3,3.11514756]
[1753484088258,0.1344,3725.4,3725.3,0.4308]
[1753484091363,0.1344,3725.4,3725.3,3.11514756]
[1753484091955,0.1344,3725.4,3725.3,0.4308]
[1753484093382,0.1344,3725.4,3725.3,3.15614756]
[1753484093560,2.5964,3725.6,3725.3,3.61954756]
[1753484093750,2.5964,3725.6,3725.3,3.15614756]
[1753484093950,2.5964,3725.6,3725.4,0.4718]
[1753484094679,0.1344,3725.6,3725.5,0.9352]
[1753484094868,2.5964,3725.6,3725.5,0.9352]
[1753484095069,2.5964,3725.6,3725.5,0.4718]
[1753484096265,0.1344,3725.6,3725.5,0.4718]
[1753484096459,0.1344,3725.7,3725.5,0.9352]
[1753484096659,0.1344,3725.7,3725.5,0.4634]
[1753484096884,0.1344,3725.7,3725.6,0.4718]
[1753484097660,0.6109,3725.7,3725.6,0.4718]
[1753484098861,0.6109,3725.7,3725.4,0.4718]
[1753484099165,0.4765,3725.6,3725.5,0.4718]
[1753484100403,0.4765,3725.6,3725.1,2.68449119]
[1753484100704,1.2519,3725.6,3725.2,0.4718]
[1753484100875,0.7754,3725.6,3725.2,0.4718]
[1753484101079,0.4765,3725.5,3725.2,0.4718]
[1753484102672,0.4765,3725.5,3725.2,3.15621185]
[1753484103004,0.7754,3725.6,3725.0,0.1344]
[1753484103209,0.6109,3725.4,3724.9,2.68458716]
[1753484103384,0.4765,3725.3,3725.0,0.4718]
[1753484103980,0.4765,3725.3,3724.8,2.81908492]
[1753484104170,0.1344,3725.1,3724.8,0.4718]
[1753484104368,0.1344,3725.1,3724.7,2.68476134]
[1753484104606,0.4765,3725.0,3724.7,2.68476134]
[1753484104807,0.4765,3725.0,3724.8,0.4718]
[1753484105009,0.4765,3725.0,3724.8,3.15649584]
[1753484105172,0.4765,3725.0,3724.8,0.4718]
[1753484105573,0.7754,3725.0,3724.6,4.2]
[1753484105806,0.50334148,3724.9,3724.6,4.2]
[1753484105977,0.1344,3724.8,3724.6,4.2]
[1753484106179,0.4765,3724.7,3724.6,4.2]
[1753484106575,0.4765,3724.7,3724.6,4.6718]
[1753484106977,0.4765,3724.7,3724.6,0.4718]
[1753484107372,0.1344,3724.8,3724.6,0.4718]
[1753484107578,0.1344,3724.8,3724.4,3.14834519]
[1753484107778,0.6109,3724.8,3724.7,0.4718]
[1753484119729,0.6109,3724.8,3724.3,2.5954]
[1753484119730,0.6109,3724.8,3724.3,0.1344]
[1753484119915,2.68493781,3724.5,3723.8,3.15719713]
[1753484120118,0.1344,3724.2,3723.8,0.4718]
[1753484120325,0.4854,3724.1,3723.9,0.4538]
[1753484120636,3.2418,3724.2,3723.5,7.33939022]
[1753484120807,0.6198,3724.0,3723.7,0.4538]
[1753484121008,0.6198,3724.0,3723.5,3.28149022]
[1753484121206,0.6198,3724.0,3723.8,0.4538]
[1753484121617,0.6198,3724.0,3723.9,0.4538]
[1753484122762,0.1344,3724.0,3723.9,1.2544]
[1753484122907,0.7808,3726.6,3725.7,0.8006]
[1753484123111,0.7808,3726.6,3725.9,7.87289013]
[1753484123307,0.1344,3726.4,3726.0,0.9153]
[1753484123534,0.1344,3726.4,3726.1,0.4538]
[1753484123720,0.1344,3726.4,3726.1,0.9153]
[1753484123927,0.1344,3726.4,3726.2,3.13749921]
[1753484124121,0.1344,3726.4,3726.1,3.14525295]
[1753484124327,0.1344,3726.4,3726.3,0.4538]
[1753484127051,0.1344,3726.4,3725.8,2.81833445]
[1753484127227,0.6198,3726.4,3726.0,0.4538]
[1753484127427,0.6198,3726.4,3725.9,2.68391055]
[1753484127749,0.6198,3726.4,3725.9,0.4538]
[1753484127950,0.6198,3726.4,3726.0,0.9153]
[1753484128163,0.6198,3726.4,3726.1,0.4538]
[1753484128822,3.30335985,3726.4,3726.1,0.4538]
[1753484129209,0.4854,3726.3,3726.1,0.4538]
[1753484131164,0.4854,3726.3,3726.2,0.4538]
[1753484132032,2.68381804,3726.1,3725.7,0.4538]
[1753484132252,2.68381804,3726.1,3725.8,0.4538]
[1753484132253,3.30365734,3726.0,3725.8,0.4538]
[1753484132978,2.68398733,3725.8,3725.0,5.4377]
[1753484133177,2.49,3725.7,3725.1,0.25081766]
[1753484133346,0.1344,3725.5,3725.2,0.25081766]
[1753484133679,0.4854,3725.4,3725.3,0.25081766]
[1753484136084,3.16967551,3725.4,3725.3,0.25063161]
[1753484137170,5.65867551,3725.4,3725.3,0.25063161]
[1753484141798,2.68486821,3724.6,3724.2,0.9153]
[1753484142007,2.487,3724.6,3724.3,1.16597617]
[1753484142191,2.487,3724.6,3724.4,0.25067617]
[1753484142397,2.487,3724.6,3724.5,0.25067617]
[1753484142592,5.17185206,3724.6,3724.5,0.25067617]
[1753484142794,5.17185206,3724.6,3724.5,0.70447617]
[1753484143174,5.17185206,3724.6,3724.5,0.25067617]
[1753484143502,5.65725206,3724.6,3724.5,0.25067617]
[1753484144906,5.65725206,3724.6,3724.5,0.25073908]
[1753484146217,7.11872227,3724.6,3724.5,0.25073908]
[1753484146581,13.25700274,3724.6,3724.5,0.25073908]
[1753484147416,13.07450274,3724.6,3724.5,0.25073908]
[1753484148826,2.68564522,3723.5,3723.4,1.2536]
[1753484149122,2.68586862,3723.2,3723.1,0.4615]
[1753484149297,5.17181403,3723.3,3723.1,0.4615]
[1753484149498,5.17181403,3723.3,3723.1,0.9153]
[1753484149897,5.17181403,3723.3,3723.0,0.9083]
[1753484149898,2.486,3723.3,3723.0,0.9083]
[1753484150118,5.17179676,3723.3,3723.1,0.9104]
[1753484150318,2.486,3723.3,3723.2,0.9104]
[1753484150514,5.17178948,3723.3,3723.2,0.9104]
[1753484150720,2.486,3723.3,3723.2,0.9104]
[1753484151532,5.17178948,3723.3,3723.2,0.9104]
[1753484153740,2.486,3723.3,3723.2,0.9104]
[1753484154251,5.17178948,3723.3,3723.2,0.9104]
[1753484154652,2.486,3723.3,3723.2,0.9104]
[1753484160986,2.486,3723.3,3723.2,1.16061872]
[1753484162266,5.17178948,3723.3,3723.2,1.16061872]
[1753484162469,5.17178948,3723.3,3723.2,0.4396]
[1753484162666,5.17178948,3723.3,3723.2,0.68977934]
[1753484163672,5.17178948,3723.3,3723.2,0.25017934]
[1753484163864,7.39817876,3723.3,3723.2,0.25017934]
[1753484164384,2.68617031,3722.8,3722.5,0.1344]
[1753484164580,2.68617031,3722.8,3722.7,0.4396]
[1753484164754,5.16617031,3722.8,3722.7,0.68971449]
[1753484164953,5.16617031,3722.8,3722.7,1.16051449]
[1753484165399,5.16617031,3722.8,3722.7,1.16056208]
[1753484165607,0.7538,3723.3,3722.7,0.89662829]
[1753484165901,2.6144,3723.2,3722.8,1.16056208]
[1753484166075,2.479,3723.1,3722.9,0.25016208]
[1753484166261,2.479,3723.1,3723.0,0.25016208]
[1753484166800,2.479,3723.1,3723.0,1.16056208]
[1753484168522,2.479,3723.1,3723.0,1.16071917]
[1753484169018,2.479,3723.1,3723.0,1.16071793]
[1753484170216,2.479,3723.1,3723.0,1.16079642]
[1753484170916,2.477,3723.1,3723.0,1.16079642]
[1753484171381,2.477,3723.1,3723.0,0.68999642]
[1753484180466,2.9293,3723.1,3723.0,0.68999642]
[1753484181671,2.68643885,3722.4,3721.0,0.4378]
[1753484181877,5.18898047,3722.2,3721.5,0.4378]
[1753484182025,2.9373,3722.1,3721.5,0.925]
[1753484182230,2.68694513,3721.7,3721.6,0.4378]
[1753484182472,5.17194513,3721.7,3721.6,0.4378]
[1753484182829,2.485,3721.7,3721.6,0.4378]
[1753484183034,5.17194413,3721.7,3721.6,0.4378]
[1753484188564,0.7718,3722.5,3721.1,3.0]
[1753484188767,2.9343,3722.4,3721.6,0.4378]
[1753484188947,2.482,3722.3,3721.7,0.4872]
[1753484189148,2.9343,3722.3,3721.8,0.4378]
[1753484189361,2.482,3722.3,3721.8,3.12464355]
[1753484189560,0.4523,3722.2,3721.9,0.4378]
[1753484189761,2.482,3722.1,3722.0,0.4378]
[1753484190477,2.482,3722.1,3722.0,0.925]
[1753484192698,2.481,3722.2,3722.0,0.925]
[1753484192901,2.481,3722.2,3722.0,0.4378]
[1753484193065,2.9333,3722.2,3722.0,0.4378]
[1753484193468,2.9333,3722.2,3722.0,3.12450122]
[1753484193791,2.9333,3722.2,3722.1,0.4378]
[1753484194863,2.481,3722.2,3722.1,0.4378]
[1753484195607,2.481,3722.2,3722.1,3.12445538]
[1753484196802,2.481,3722.2,3722.1,0.4378]
[1753484197704,2.481,3722.2,3721.6,4.2]
[1753484197705,4.01857,3722.2,3721.6,4.2]
[1753484197867,2.68676954,3722.0,3721.6,4.2]
[1753484198303,0.4523,3721.9,3721.6,4.2]
[1753484198719,3.13915464,3721.9,3721.6,4.2]
[1753484198882,0.4523,3721.8,3721.6,4.2]
[1753484199420,3.56627,3722.2,3721.6,4.6378]
[1753484199698,2.68673691,3722.0,3721.7,0.925]
[1753484199898,2.68673691,3722.0,3721.6,4.2]
[1753484200122,3.13903691,3722.0,3721.8,0.4378]
[1753484201517,0.4523,3721.9,3721.8,0.4378]
[1753484202011,2.68665708,3722.1,3721.8,0.4378]
[1753484202314,3.13895708,3722.1,3721.8,0.4378]
[1753484202486,0.7785,3722.2,3721.7,2.6868847]
[1753484202688,2.477,3722.1,3721.9,0.4378]
[1753484203014,2.477,3722.1,3722.0,0.4872]
[1753484203317,2.477,3722.1,3722.0,0.925]
[1753484203818,0.4523,3722.4,3722.0,0.925]
[1753484204015,0.4523,3722.4,3722.0,0.4872]
[1753484204184,2.9293,3722.3,3722.1,0.4378]
[1753484206331,5.16351959,3722.3,3722.1,0.4378]
[1753484206635,0.4523,3722.2,3722.1,0.4378]
[1753484207831,2.6114,3722.3,3722.1,0.4378]
[1753484208334,0.1344,3722.3,3722.1,0.4378]
[1753484208545,2.475,3722.2,3722.1,0.4378]
[1753484212044,0.5867,3722.3,3722.1,0.4378]
[1753484212219,3.0607,3722.3,3722.1,0.4378]
[1753484214348,0.4976,3722.2,3722.1,0.4378]
[1753484219558,0.7738,3722.9,3722.1,0.4378]
[1753484219756,0.1344,3722.8,3722.3,2.68649815]
[1753484220054,2.471,3722.7,3722.4,3.77072868]
[1753484220263,0.25137246,3723.0,3722.5,0.9499]
[1753484220436,0.25137246,3723.6,3723.4,2.68567191]
[1753484220631,0.4976,3723.9,3723.5,0.9499]
[1753484220867,0.632,3723.9,3723.6,0.4573]
[1753484221159,0.4976,3723.8,3723.6,0.4573]
[1753484222028,3.18269069,3724.3,3723.7,0.4573]
[1753484222226,2.6094,3724.0,3723.7,0.9499]
[1753484222455,2.475,3724.0,3723.8,0.9499]
[1753484222621,2.475,3724.0,3723.9,0.4573]
[1753484223470,2.475,3724.0,3723.9,0.9499]
[1753484224957,2.475,3724.0,3723.9,0.4573]
[1753484225259,2.475,3724.0,3723.9,0.9499]
[1753484225461,2.475,3724.0,3723.9,0.4573]
[1753484225670,0.7738,3724.9,3723.9,0.4573]
[1753484225872,0.1344,3724.3,3724.0,0.4926]
[1753484226234,0.1344,3724.3,3724.1,0.4573]
[1753484226628,0.1344,3724.3,3724.0,0.4926]
[1753484226871,0.4976,3724.5,3724.2,0.4573]
[1753484227033,0.1344,3724.4,3724.3,0.4573]
[1753484228031,0.1344,3724.4,3724.3,0.9499]
[1753484228729,0.1344,3724.4,3724.3,0.4573]
[1753484230423,0.632,3724.4,3724.3,0.4573]
[1753484232645,0.632,3724.4,3724.1,0.4573]
[1753484232963,0.632,3724.4,3724.2,0.4573]
[1753484233173,0.1344,3724.4,3724.3,0.4573]
[1753484233334,0.1344,3724.5,3724.3,0.4573]
[1753484233675,0.632,3724.5,3724.4,0.4573]
[1753484234984,2.9706,3724.8,3724.4,0.4573]
[1753484235182,2.9706,3724.8,3724.4,0.9499]
[1753484235383,3.105,3724.8,3724.2,3.59948618]
[1753484235679,2.473,3724.8,3724.5,0.9499]
[1753484235880,2.473,3724.8,3724.5,0.4926]
[1753484236084,2.473,3724.8,3724.6,0.4573]
[1753484236387,0.4976,3725.3,3724.7,0.4573]
[1753484236685,0.632,3725.3,3724.7,1.0843]
[1753484236886,0.632,3725.3,3724.8,2.68466283]
[1753484237091,0.632,3725.3,3724.9,2.6846287]
[1753484237243,0.1344,3725.3,3725.0,2.68455944]
[1753484237577,0.1344,3725.3,3725.1,0.9499]
[1753484238083,0.1344,3725.3,3725.2,0.4573]
[1753484240090,0.6012,3725.3,3725.2,0.4573]
[1753484240385,3.28554756,3725.3,3725.2,0.4573]
[1753484241178,0.6012,3725.3,3725.2,0.4573]
[1753484242494,3.28554756,3725.3,3725.2,0.4573]
[1753484242708,0.6012,3725.3,3725.2,0.4573]
[1753484248133,3.28554756,3725.3,3725.2,0.4573]
[1753484248829,0.6012,3725.3,3725.2,0.4573]
[1753484252638,3.28554756,3725.3,3725.2,0.4573]
[1753484252936,0.6012,3725.3,3725.2,0.4573]
[1753484253509,3.28554756,3725.3,3725.2,0.4573]
[1753484253928,0.6012,3725.3,3725.2,0.4573]
[1753484258045,3.28554756,3725.3,3725.2,0.4573]
[1753484263563,0.6012,3725.3,3724.7,0.8875]
[1753484263728,3.15121962,3725.2,3724.8,0.4549]
[1753484263928,0.4668,3725.1,3724.9,0.4549]
[1753484264263,0.4668,3725.1,3725.0,0.4549]
[1753484265164,2.68441962,3725.2,3725.0,0.4549]
[1753484265852,5.61721962,3725.2,3725.0,0.4549]
[1753484267031,5.61724728,3725.2,3725.0,0.4549]
[1753484267778,5.61724728,3725.2,3725.1,0.4549]
[1753484268327,3.8133,3725.1,3724.7,0.1344]
[1753484268532,0.8133,3724.3,3723.7,2.68545757]
[1753484268747,2.68514285,3724.2,3723.6,2.9209]
[1753484268958,0.4668,3724.1,3723.6,5.60646954]
[1753484269358,0.4668,3724.1,3723.6,2.9209]
[1753484269558,3.15203327,3724.1,3723.7,2.466]
[1753484269846,0.4668,3724.0,3723.7,2.466]
[1753484270869,0.4997,3723.9,3723.7,2.9122]
[1753484271075,0.4997,3723.9,3723.7,2.68548233]
[1753484271276,0.4997,3723.9,3723.8,2.9122]
[1753484278502,0.4997,3723.9,3723.8,3.0466]
[1753484279114,0.4997,3724.1,3723.8,3.0466]
[1753484279599,0.4997,3724.0,3723.8,3.0466]
[1753484279804,0.4997,3724.0,3723.8,0.5806]
[1753484280007,0.4997,3724.0,3723.9,2.466]
[1753484280299,0.4997,3724.0,3723.9,2.9122]
[1753484281371,0.4997,3724.2,3723.9,2.9122]
[1753484281569,0.4997,3724.1,3723.9,2.9122]
[1753484282399,3.63278377,3724.3,3723.9,2.9122]
[1753484282400,0.4997,3724.0,3723.9,2.9122]
[1753484282626,3.63278377,3724.3,3723.9,2.9122]
[1753484282905,0.4997,3724.2,3723.9,2.9122]
[1753484283080,3.63278377,3724.3,3723.9,2.9122]
[1753484283277,0.4997,3724.1,3723.9,2.9122]
[1753484284317,0.4997,3724.1,3724.0,2.466]
[1753484285180,0.4997,3724.1,3724.0,2.9122]
[1753484297422,4.13248053,3724.3,3724.0,2.9122]
[1753484297651,0.1344,3724.3,3724.0,1.10780895]
[1753484297794,2.68392708,3725.9,3724.2,2.81954043]
[1753484297795,1.3049,3725.2,3724.2,2.81954043]
[1753484297991,0.1344,3724.9,3724.4,2.68495295]
[1753484298295,0.1344,3724.9,3724.5,3.3972]
[1753484298691,0.1344,3724.9,3724.5,2.465]
[1753484298918,0.1344,3724.9,3724.6,0.9322]
[1753484299362,0.1344,3724.9,3724.7,0.9322]
[1753484299725,0.1344,3724.9,3724.8,0.9322]
[1753484300419,0.1344,3724.9,3724.8,0.4462]
[1753484301936,2.81903582,3724.9,3724.8,0.4462]
[1753484302462,0.1344,3724.9,3724.8,0.4462]
[1753484303464,2.81903582,3724.9,3724.8,0.4462]
[1753484303623,3.29063582,3724.9,3724.8,0.4462]
[1753484304027,2.68474846,3724.8,3724.6,2.465]
[1753484304270,3.15634846,3724.8,3724.6,2.465]
[1753484304571,3.15639263,3724.7,3724.3,0.4375]
[1753484304728,2.68473854,3724.8,3724.5,2.465]
[1753484304923,0.4716,3724.6,3724.5,2.465]
[1753484305154,0.4716,3724.6,3724.5,2.9025]
[1753484306672,3.15645206,3724.6,3724.5,2.9025]
[1753484308032,2.68485206,3724.6,3724.5,2.9025]
[1753484309676,3.15645206,3724.6,3724.5,0.4375]
[1753484309872,0.1344,3724.9,3724.2,0.1344]
[1753484309873,2.68506833,3724.3,3724.2,0.1344]
[1753484310083,2.68514043,3724.2,3723.7,4.2]
[1753484310373,2.68522589,3724.1,3723.9,0.4375]
[1753484310724,2.68522589,3724.1,3724.0,0.4594]
[1753484311128,0.1344,3724.3,3724.0,0.8969]
[1753484311347,2.68521253,3724.1,3724.0,0.4594]
[1753484311946,2.68521253,3724.1,3724.0,0.8969]
[1753484312583,0.606,3724.3,3724.0,0.8969]
[1753484312760,2.81948793,3724.3,3723.8,2.5994]
[1753484312957,2.81948793,3724.3,3723.9,0.8969]
[1753484313161,2.81948793,3724.3,3723.8,2.5994]
[1753484313473,0.7566,3724.8,3724.1,0.832]
[1753484313645,2.68486344,3724.6,3724.2,2.5994]
[1753484313844,2.68486344,3724.6,3724.3,0.8969]
[1753484314053,0.1344,3724.7,3724.3,0.8969]
[1753484314289,2.68486519,3724.6,3724.2,2.5994]
[1753484314582,2.68486519,3724.6,3724.4,0.8969]
[1753484314762,2.68486519,3724.6,3724.5,0.4375]
[1753484315681,2.81920956,3724.7,3724.5,0.4375]
[1753484315883,2.81920956,3724.7,3724.4,0.4594]
[1753484316083,2.81920956,3724.7,3724.6,0.4375]
[1753484317185,3.29080956,3724.7,3724.6,0.4375]
[1753484322298,2.81920956,3724.7,3724.6,0.4375]
[1753484322862,0.1344,3724.7,3724.6,0.4375]
[1753484323062,2.81917998,3724.7,3724.6,0.4375]
[1753484323271,0.1344,3724.7,3724.6,0.4375]
[1753484327602,2.68458201,3725.0,3724.6,0.4375]
[1753484327798,0.1344,3724.8,3724.6,0.8969]
[1753484328012,0.1344,3724.8,3724.7,0.4375]
[1753484329086,0.4716,3725.0,3724.7,0.4375]
[1753484329269,0.1344,3724.9,3724.6,0.4594]
[1753484329464,0.1344,3724.9,3724.7,0.4375]
[1753484329995,0.1344,3724.9,3724.8,0.4375]
[1753484330362,0.6104,3724.9,3724.8,0.4375]
[1753484333608,0.1344,3724.9,3724.4,5.14798465]
[1753484333814,0.1344,3724.9,3724.5,0.9337]
[1753484334108,0.1344,3724.9,3724.6,0.9337]
[1753484334496,0.1344,3724.9,3724.6,0.4777]
[1753484334683,0.1344,3724.9,3724.7,0.456]
[1753484336416,0.1344,3724.9,3724.8,0.456]
[1753484338133,2.68437258,3725.3,3724.8,0.9337]
[1753484338427,2.68437258,3725.3,3724.9,0.456]
[1753484338428,0.6104,3725.2,3724.9,0.456]
[1753484338612,0.6104,3725.2,3724.9,0.4777]
[1753484338816,0.6104,3725.2,3725.0,0.456]
[1753484339329,0.6104,3725.2,3725.1,0.456]
[1753484340792,3.29481962,3725.2,3725.1,0.456]
[1753484341008,3.29481962,3725.2,3724.9,0.456]
[1753484341193,2.6847079,3724.8,3724.7,3.0751]
[1753484341836,2.6847079,3724.8,3724.7,3.5311]
[1753484342936,2.68457545,3725.0,3724.2,0.8313]
[1753484343242,2.68492415,3724.5,3724.4,2.463]
[1753484343594,3.16092415,3724.5,3724.4,2.919]
[1753484343936,2.68506833,3724.3,3723.9,0.8313]
[1753484344094,2.68514043,3724.2,3724.1,0.5904]
[1753484345211,2.68521253,3724.1,3724.0,2.462]
[1753484345605,2.68521253,3724.1,3724.0,2.918]
[1753484346632,2.68521253,3724.1,3724.0,0.456]
[1753484347307,2.68521253,3724.1,3724.0,0.9337]
[1753484348138,2.68521253,3724.1,3724.0,0.456]
[1753484348794,0.7863,3723.8,3723.2,4.2]
[1753484348996,2.68576923,3723.4,3723.2,3.0524]